bitfinex/quotes_ETHUSD_20250517
["timestamp","ask_amount","ask_price","bid_price","bid_amount"]
[1747461873498,4.01058795,2493.4,2493.3,8.41105364]
[1747461873671,4.01058795,2493.4,2493.3,7.931]
[1747461874296,0.7519,2493.3,2492.9,0.48005364]
[1747461874591,4.01109025,2493.1,2493.0,7.931]
[1747461874795,0.7519,2493.5,2493.0,8.77210536]
[1747461874991,4.01091642,2493.2,2493.0,8.77210536]
[1747461875200,4.01091642,2493.2,2493.1,0.38134072]
[1747461875865,4.76237242,2493.5,2493.1,0.38134072]
[1747461876065,4.0107498,2493.3,2493.1,0.38134072]
[1747461876291,4.0107498,2493.3,2493.1,1.26058016]
[1747461877094,4.01090967,2493.2,2493.1,0.87923944]
[1747461877306,4.01107055,2493.1,2493.0,8.41105364]
[1747461877600,4.01107055,2493.1,2493.0,0.48005364]
[1747461877902,4.01107055,2493.1,2493.0,8.41205364]
[1747461878102,4.01107055,2493.1,2493.0,0.48005364]
[1747461878403,4.01107055,2493.1,2493.0,0.86296821]
[1747461878604,4.01107055,2493.1,2493.0,8.79496821]
[1747461879405,4.01098626,2493.2,2493.1,0.7987]
[1747461879588,4.01098626,2493.2,2493.1,8.7307]
[1747461880299,4.01098626,2493.2,2493.1,7.932]
[1747461880506,4.01107055,2493.1,2493.0,0.48005364]
[1747461880694,4.01107055,2493.1,2493.0,8.41205364]
[1747461881814,4.01107055,2493.1,2493.0,0.48005364]
[1747461882011,4.01123144,2493.0,2492.9,0.64007368]
[1747461882246,4.01123144,2493.0,2492.9,8.57207368]
[1747461883287,4.01123144,2493.0,2492.9,8.95598899]
[1747461883876,4.01123144,2493.0,2492.9,1.02398899]
[1747461884076,4.01123144,2493.0,2492.9,8.95598899]
[1747461884313,5.03208468,2493.0,2492.9,1.02398899]
[1747461884499,5.80368468,2493.0,2492.9,1.02398899]
[1747461885072,13.80368468,2493.0,2492.9,1.02398899]
[1747461885276,13.80368468,2493.0,2492.9,0.38391531]
[1747461886013,14.35368468,2493.0,2492.9,0.38391531]
[1747461886697,4.0117142,2492.7,2492.6,0.47987207]
[1747461887020,14.14394465,2492.7,2492.6,0.47987207]
[1747461887243,16.86446693,2492.7,2492.6,0.47987207]
[1747461887891,4.0120361,2492.5,2492.4,17.319]
[1747461888783,4.0120361,2492.5,2492.4,17.70217785]
[1747461890482,12.0120361,2492.5,2492.4,0.38317785]
[1747461890682,12.7723361,2492.5,2492.1,7.934]
[1747461890916,4.01251905,2492.2,2492.1,7.934]
[1747461894541,4.01291669,2492.0,2491.8,2.0922]
[1747461894748,4.01291669,2492.0,2491.9,8.31634664]
[1747461896742,4.01291669,2492.0,2491.9,8.31734664]
[1747461897749,4.01291669,2492.0,2491.9,7.935]
[1747461897913,4.01300212,2491.9,2491.8,2.0922]
[1747461899143,13.36070212,2491.9,2491.8,2.0922]
[1747461903549,4.01300212,2491.9,2491.8,2.0922]
[1747461904456,12.81070212,2491.9,2491.8,2.0922]
[1747461905521,12.01300212,2491.9,2491.8,2.0922]
[1747461905748,19.89900212,2491.9,2491.8,2.0922]
[1747461906247,12.01300212,2491.9,2491.8,2.0922]
[1747461906453,19.89800212,2491.9,2491.8,2.0922]
[1747461906650,21.79616705,2491.9,2491.8,2.0922]
[1747461910272,23.11566705,2491.9,2491.8,2.0922]
[1747461910568,4.01429087,2491.1,2491.0,0.47987207]
[1747461910774,11.92429087,2491.1,2491.0,0.47987207]
[1747461911472,12.69379087,2491.1,2491.0,0.47987207]
[1747461911968,22.88002132,2491.1,2491.0,0.47987207]
[1747461912143,23.43002132,2491.1,2491.0,0.47987207]
[1747461912467,17.71443921,2491.1,2491.0,0.47987207]
[1747461912639,24.89493921,2491.1,2491.0,0.47987207]
[1747461913060,26.22903921,2491.1,2491.0,0.47987207]
[1747461914349,26.22903921,2491.1,2489.8,0.64007368]
[1747461914350,4.01590297,2490.1,2489.8,0.64007368]
[1747461914561,4.01622555,2489.9,2489.8,0.64007368]
[1747461914772,7.962,2490.3,2489.8,0.64007368]
[1747461914937,4.0157417,2490.2,2489.8,0.64007368]
[1747461915138,4.01615288,2490.0,2489.9,0.38256849]
[1747461915554,4.01615288,2490.0,2489.9,8.27856849]
[1747461916054,4.01615288,2490.0,2489.9,0.38256849]
[1747461916261,4.01615288,2490.0,2489.9,8.27856849]
[1747461916571,8.7841,2490.7,2490.0,0.8135]
[1747461916747,4.01575209,2490.2,2490.0,0.8135]
[1747461917161,4.0154745,2490.4,2490.0,0.8135]
[1747461917342,4.01575085,2490.2,2490.0,0.8135]
[1747461917741,4.01575085,2490.2,2490.1,0.38256849]
[1747461917943,4.01575085,2490.2,2490.1,8.28056849]
[1747461918345,4.01575085,2490.2,2490.1,0.38256849]
[1747461918577,4.01575085,2490.2,2490.1,8.28056849]
[1747461919573,4.01563258,2490.3,2490.1,7.898]
[1747461920475,4.01563258,2490.3,2490.2,0.38189111]
[1747461921578,4.01563258,2490.3,2490.2,8.27989111]
[1747461921777,4.01563258,2490.3,2490.2,0.38189111]
[1747461922307,4.01563258,2490.3,2490.1,7.898]
[1747461922643,4.0157417,2490.2,2490.1,7.898]
[1747461923690,4.01590297,2490.1,2490.0,0.8135]
[1747461923884,4.01590297,2490.1,2490.0,8.7125]
[1747461924565,4.01590297,2490.1,2490.0,0.8135]
[1747461924893,4.01558045,2490.3,2489.9,7.899]
[1747461925092,11.95182317,2490.2,2489.9,7.899]
[1747461925305,4.01590297,2490.1,2490.0,0.38210311]
[1747461926208,4.01580314,2490.2,2490.0,0.38210311]
[1747461926658,11.94366837,2490.3,2490.1,0.8307]
[1747461926862,4.0157417,2490.2,2490.1,8.7297]
[1747461927410,4.0157417,2490.2,2489.7,0.7864]
[1747461927607,4.0160727,2490.0,2489.7,0.7864]
[1747461927770,4.0160727,2490.0,2489.8,7.899]
[1747461928507,4.01606601,2490.0,2489.7,0.7864]
[1747461928707,4.01606601,2490.0,2489.9,7.925]
[1747461929092,4.01624936,2489.9,2489.7,0.7864]
[1747461929283,4.01624936,2489.9,2489.8,7.925]
[1747461929483,4.01624936,2489.9,2489.8,8.30792607]
[1747461929885,4.01622555,2489.9,2489.8,0.38292607]
[1747461930072,4.41784811,2489.9,2489.8,0.38292607]
[1747461931510,5.22284811,2489.9,2489.8,0.38292607]
[1747461931823,11.93422555,2489.9,2489.8,0.38292607]
[1747461935212,7.908,2490.1,2489.8,0.38292607]
[1747461935377,4.01587955,2490.2,2489.9,0.7864]
[1747461936077,4.01574945,2490.2,2489.9,0.7864]
[1747461936285,4.01574945,2490.2,2489.9,1.80939975]
[1747461937111,7.908,2490.4,2489.9,1.80939975]
[1747461937414,4.01593953,2490.1,2490.0,8.30892607]
[1747461939083,4.01579377,2490.2,2490.0,8.30892607]
[1747461939622,13.19628764,2490.4,2490.0,8.30892607]
[1747461939623,0.805,2490.8,2490.0,8.30892607]
[1747461939924,4.93064834,2491.1,2490.2,0.7864]
[1747461939925,4.01517102,2490.6,2490.2,0.7864]
[1747461940288,4.01517102,2490.6,2490.2,2.09751474]
[1747461940690,4.01517102,2490.6,2490.3,0.38292607]
[1747461942343,4.01528305,2490.5,2490.3,0.38292607]
[1747461942523,4.01528305,2490.5,2490.4,1.02337338]
[1747461943108,4.01528305,2490.5,2490.4,8.94937338]
[1747461943921,4.01512367,2490.6,2490.4,8.94937338]
[1747461944091,4.01495536,2490.7,2490.4,8.94937338]
[1747461944423,4.01525798,2490.5,2490.4,8.94937338]
[1747461945127,4.01525798,2490.5,2490.4,8.30892607]
[1747461945723,4.01525798,2490.5,2490.4,0.38292607]
[1747461945922,4.01525798,2490.5,2490.4,8.30792607]
[1747461945923,4.81829445,2490.5,2490.4,8.30792607]
[1747461946391,4.81829445,2490.5,2490.4,0.38292607]
[1747461952452,4.01558045,2490.3,2490.2,7.925]
[1747461952603,4.01594812,2490.1,2489.9,0.64044731]
[1747461952808,4.01594812,2490.1,2490.0,7.925]
[1747461953752,4.01594812,2490.1,2490.0,8.30919375]
[1747461955060,4.01594812,2490.1,2490.0,0.38419375]
[1747461955271,4.01594812,2490.1,2490.0,8.30919375]
[1747461956758,4.01594812,2490.1,2490.0,9.30919375]
[1747461957433,4.81911901,2490.1,2490.0,9.30919375]
[1747461957636,4.81911901,2490.1,2490.0,1.38419375]
[1747461959956,4.01581518,2490.2,2490.0,1.38419375]
[1747461960256,4.01590297,2490.1,2490.0,2.16639375]
[1747461962989,0.7737,2490.9,2490.0,2.16639375]
[1747461963129,4.01487332,2490.8,2490.2,4.01561394]
[1747461963472,4.01505956,2490.7,2490.2,1.73936879]
[1747461963650,4.01505956,2490.7,2490.2,5.75509235]
[1747461964032,4.01514675,2490.6,2490.2,1.73936879]
[1747461964530,4.01514675,2490.6,2490.3,0.38419375]
[1747461964733,4.01502253,2490.7,2490.4,7.872]
[1747461965368,4.01493556,2490.7,2490.4,7.872]
[1747461965671,4.01493556,2490.7,2490.5,0.38419375]
[1747461966174,4.01445688,2491.0,2490.6,0.7978]
[1747461966342,4.01469246,2490.9,2490.6,0.7978]
[1747461967281,4.01472964,2490.9,2490.7,8.25619375]
[1747461967461,4.01462315,2490.9,2490.7,8.25619375]
[1747461967659,4.01453591,2491.0,2490.7,8.25619375]
[1747461968132,4.01453591,2491.0,2490.7,0.38419375]
[1747461968466,4.01453591,2491.0,2490.8,7.872]
[1747461968700,4.01453591,2491.0,2490.8,8.25619375]
[1747461968992,4.01435558,2491.1,2490.8,8.25619375]
[1747461969382,4.01431396,2491.1,2490.8,8.25619375]
[1747461970293,4.01446383,2491.0,2490.8,8.25619375]
[1747461970487,4.01446383,2491.0,2490.7,0.64044731]
[1747461970488,4.01446383,2491.0,2490.9,0.38419375]
[1747461970659,4.01446383,2491.0,2490.9,8.25519375]
[1747461970859,4.01446383,2491.0,2490.9,0.38419375]
[1747461971159,4.01446383,2491.0,2490.9,8.25519375]
[1747461978106,4.01446383,2491.0,2490.9,0.38419375]
[1747461978402,4.01446383,2491.0,2490.9,8.25419375]
[1747461978982,4.01446383,2491.0,2490.9,0.38419375]
[1747461979181,5.60432974,2491.0,2490.9,8.25419375]
[1747461979414,4.01434157,2491.1,2490.9,8.25419375]
[1747461980508,4.01434157,2491.1,2491.0,0.38419375]
[1747461980894,0.7902,2491.5,2491.0,0.38419375]
[1747461981101,11.88304065,2491.3,2491.0,1.18099375]
[1747461981266,4.01374745,2491.5,2491.0,5.19536773]
[1747461981471,7.869,2491.7,2491.2,0.7968]
[1747461981671,4.0135757,2491.6,2491.2,0.7968]
[1747461981873,4.0135757,2491.6,2491.3,0.38419375]
[1747461982082,4.0135757,2491.6,2491.4,7.87]
[1747461983123,4.01364639,2491.5,2491.4,7.87]
[1747461983615,4.01364639,2491.5,2491.4,8.25419375]
[1747461984177,12.25069753,2491.5,2491.4,8.25419375]
[1747461985007,15.49661732,2491.5,2491.4,0.38419375]
[1747461986308,4.01396861,2491.3,2491.2,7.87]
[1747461986683,12.25078855,2491.5,2491.2,7.87]
[1747461986886,4.01382988,2491.4,2491.2,7.87]
[1747461987183,4.01383311,2491.4,2491.3,7.869]
[1747461987603,4.01383311,2491.4,2491.3,0.38316759]
[1747461988094,5.6402884,2491.4,2491.3,0.38316759]
[1747461988293,5.6402884,2491.4,2491.3,8.25216759]
[1747461988506,5.6402884,2491.4,2491.3,0.38316759]
[1747461988804,6.4679884,2491.4,2491.3,8.25216759]
[1747461989302,13.5072884,2491.4,2491.3,0.38316759]
[1747461990375,11.88083311,2491.4,2491.3,0.38316759]
[1747461990711,8.23705114,2491.5,2491.3,1.15946759]
[1747461991079,8.23705114,2491.5,2491.4,0.38316759]
[1747461994305,8.23705114,2491.5,2491.4,1.0236149]
[1747461994818,4.01248215,2492.3,2491.5,4.76983583]
[1747461994979,4.01279037,2492.1,2491.6,18.66964507]
[1747461995177,4.01294599,2492.0,2491.6,18.0903]
[1747461995383,4.01294599,2492.0,2491.7,7.866]
[1747461995579,4.01294599,2492.0,2491.9,0.47989944]
[1747461996120,4.01316317,2491.8,2491.7,1.0236149]
[1747461996418,22.52706467,2491.8,2491.7,1.0236149]
[1747461996724,4.01382901,2491.4,2491.1,0.64044731]
[1747461997281,8.0,2491.7,2491.1,0.64044731]
[1747461997282,4.01412973,2491.2,2491.1,0.64044731]
[1747461997477,4.01412973,2491.2,2491.1,8.50644731]
[1747461997811,4.01412973,2491.2,2491.1,8.89042298]
[1747461998614,7.866,2491.5,2491.1,8.89042298]
[1747461999000,4.01380749,2491.4,2491.1,8.89042298]
[1747461999194,4.01380749,2491.4,2491.1,8.24997567]
[1747462000889,11.87969775,2491.5,2491.1,8.24997567]
[1747462001094,4.01397172,2491.3,2491.1,8.24997567]
[1747462001518,4.01397172,2491.3,2491.2,0.38397567]
[1747462002811,4.01397172,2491.3,2491.2,8.24997567]
[1747462003030,4.01384168,2491.4,2491.2,8.24997567]
[1747462003199,0.7849,2491.9,2491.3,0.7946]
[1747462003398,4.0133439,2491.7,2491.3,1.17857567]
[1747462003617,4.01354869,2491.6,2491.3,1.17857567]
[1747462003917,4.01338915,2491.7,2491.3,1.17857567]
[1747462004225,4.01356624,2491.6,2491.3,1.17857567]
[1747462004726,4.01367852,2491.5,2491.4,7.866]
[1747462004913,11.87822325,2491.8,2491.4,7.866]
[1747462005115,4.013395,2491.7,2491.4,8.24997567]
[1747462005689,4.01317639,2491.8,2491.4,8.24997567]
[1747462005894,7.865,2491.9,2491.4,9.55584279]
[1747462006096,11.8780744,2491.9,2491.4,13.56963265]
[1747462006631,4.01316335,2491.8,2491.4,9.55584279]
[1747462006825,4.01316335,2491.8,2491.5,0.38397567]
[1747462007136,4.01308182,2491.9,2491.6,0.7946]
[1747462007320,4.01316317,2491.8,2491.7,7.866]
[1747462008434,4.01332746,2491.7,2491.5,17.71697567]
[1747462008619,4.01348531,2491.6,2491.5,17.333]
[1747462009005,4.01348531,2491.6,2491.5,25.199]
[1747462010331,4.01348531,2491.6,2491.5,17.71710761]
[1747462010716,4.01348531,2491.6,2491.5,25.58310761]
[1747462011334,4.01348531,2491.6,2491.5,17.71710761]
[1747462011555,4.01348531,2491.6,2491.5,25.58310761]
[1747462013233,4.01348531,2491.6,2491.5,17.71710761]
[1747462013433,5.18885754,2491.6,2491.5,25.58310761]
[1747462014019,5.18885754,2491.6,2491.5,17.71710761]
[1747462014339,5.18885754,2491.6,2491.5,25.58310761]
[1747462014746,5.18885754,2491.6,2491.5,17.71710761]
[1747462015617,5.18885754,2491.6,2491.5,25.58310761]
[1747462016139,5.18885754,2491.6,2491.5,17.71710761]
[1747462021131,6.32271686,2491.6,2491.5,0.38410761]
[1747462021331,7.11981686,2491.6,2491.5,0.38410761]
[1747462022131,13.84795754,2491.6,2491.5,0.38410761]
[1747462023045,4.01330206,2491.8,2491.5,0.38410761]
[1747462023342,4.01333847,2491.7,2491.6,8.674]
[1747462023649,4.01348531,2491.6,2491.5,0.38410761]
[1747462023946,4.01348531,2491.6,2491.5,8.24610761]
[1747462025159,4.01348531,2491.6,2491.5,0.38410761]
[1747462025313,4.01348531,2491.6,2491.5,8.24610761]
[1747462026617,4.01320854,2491.8,2491.5,9.1347631]
[1747462026850,4.01344067,2491.7,2491.5,8.24610761]
[1747462028150,4.01344067,2491.7,2491.6,0.38410761]
[1747462030066,4.82174067,2491.7,2491.6,8.24610761]
[1747462030363,4.01344067,2491.7,2491.6,8.24610761]
[1747462031460,4.01344067,2491.7,2491.6,9.05810761]
[1747462033361,4.01325507,2491.8,2491.6,9.05810761]
[1747462034361,4.01332423,2491.7,2491.6,9.05810761]
[1747462034565,4.01332423,2491.7,2491.6,0.38410761]
[1747462034732,5.60198216,2491.7,2491.6,8.24610761]
[1747462034933,4.01332423,2491.7,2491.6,8.24610761]
[1747462036860,11.87224393,2491.8,2491.6,8.24610761]
[1747462037066,4.01332423,2491.7,2491.6,8.24610761]
[1747462038145,4.01332423,2491.7,2491.6,0.38410761]
[1747462038452,4.01332423,2491.7,2491.6,8.24610761]
[1747462040661,4.01332423,2491.7,2491.6,0.38410761]
[1747462040860,5.60178105,2491.7,2491.6,8.24610761]
[1747462042762,5.60178105,2491.7,2491.6,0.38410761]
[1747462043136,13.60178105,2491.7,2491.6,0.38410761]
[1747462043360,14.40538105,2491.7,2491.6,0.38410761]
[1747462044474,4.01380749,2491.4,2491.3,0.64044731]
[1747462046300,4.01380749,2491.4,2491.3,0.38435373]
[1747462046454,4.0137112,2491.5,2491.3,0.38435373]
[1747462046653,11.8707112,2491.5,2491.3,1.35570383]
[1747462047520,11.8707112,2491.5,2491.4,0.38435373]
[1747462047664,4.01280228,2492.1,2491.6,0.8118]
[1747462047993,4.01300082,2492.0,2491.7,7.862]
[1747462048291,4.01302766,2491.9,2491.7,7.862]
[1747462049468,4.01302766,2491.9,2491.8,0.38435373]
[1747462050191,4.01293063,2492.0,2491.8,0.38435373]
[1747462050494,4.01300212,2491.9,2491.8,0.38435373]
[1747462050692,4.01274033,2492.1,2491.8,0.38435373]
[1747462050873,11.86868331,2492.1,2491.8,0.38435373]
[1747462051466,4.01288379,2492.0,2491.8,0.38435373]
[1747462051871,4.01288379,2492.0,2491.9,0.38435373]
[1747462052174,11.86873882,2492.1,2491.9,0.38435373]
[1747462052496,4.01273882,2492.1,2491.9,0.38435373]
[1747462052703,11.86773882,2492.1,2491.9,0.38435373]
[1747462053009,11.86773882,2492.1,2492.0,0.38435373]
[1747462053709,13.45577,2492.1,2492.0,0.38435373]
[1747462055596,14.26307,2492.1,2492.0,0.38435373]
[1747462056695,22.26307,2492.1,2492.0,0.38435373]
[1747462057792,4.01316317,2491.8,2491.7,1.0]
[1747462057992,5.96462249,2491.8,2491.7,1.0]
[1747462058288,6.96238792,2491.8,2491.7,1.0]
[1747462062472,14.81438792,2491.8,2491.7,1.0]
[1747462063889,14.81438792,2491.8,2491.7,1.38309481]
[1747462064702,5.0109286,2491.8,2491.7,1.38309481]
[1747462065013,11.86516317,2491.8,2491.7,1.38309481]
[1747462065704,11.86516317,2491.8,2491.7,9.23809481]
[1747462065903,11.86516317,2491.8,2491.7,8.855]
[1747462066529,11.86416317,2491.8,2491.7,8.855]
[1747462067931,4.01316317,2491.8,2491.7,8.855]
[1747462068109,11.86416317,2491.8,2491.7,8.855]
[1747462068914,11.86416317,2491.8,2491.7,1.0]
[1747462069082,13.45188266,2491.8,2491.7,1.0]
[1747462069481,13.45188266,2491.8,2491.7,1.38321761]
[1747462069980,14.25398266,2491.8,2491.7,1.38321761]
[1747462071018,14.25398266,2491.8,2491.7,1.0]
[1747462072011,13.45188266,2491.8,2491.7,1.0]
[1747462072322,11.86316317,2491.8,2491.7,1.0]
[1747462072620,4.01316317,2491.8,2491.7,1.0]
[1747462072818,11.86316317,2491.8,2491.7,1.0]
[1747462072983,11.86316317,2491.8,2491.7,1.38304543]
[1747462075229,4.01308943,2491.9,2491.7,1.38304543]
[1747462075385,4.01289613,2492.0,2491.7,2.18494543]
[1747462075590,4.01300212,2491.9,2491.7,2.18494543]
[1747462075797,4.01262787,2492.2,2491.8,0.38304543]
[1747462076002,11.86178789,2492.1,2491.8,0.38304543]
[1747462076247,4.01278789,2492.1,2491.8,0.38304543]
[1747462076446,4.01278789,2492.1,2491.8,1.10327999]
[1747462076722,7.849,2492.2,2491.9,0.7936]
[1747462076923,11.86152392,2492.2,2492.0,7.855]
[1747462078028,11.86152392,2492.2,2492.1,0.38304543]
[1747462078431,11.86152392,2492.2,2492.1,8.23804543]
[1747462079934,4.01252392,2492.2,2492.1,8.23804543]
[1747462080132,7.847,2492.2,2492.1,8.23804543]
[1747462080334,11.85951905,2492.2,2492.1,8.23804543]
[1747462081331,4.01251905,2492.2,2492.1,8.23804543]
[1747462082632,4.01251905,2492.2,2492.1,0.38304543]
[1747462082933,4.01251905,2492.2,2492.1,8.22904543]
[1747462084907,4.01243455,2492.3,2492.1,8.22904543]
[1747462085304,0.8187,2493.0,2492.2,0.7666]
[1747462085634,4.01058795,2493.4,2492.9,0.7666]
[1747462085805,4.01068716,2493.4,2493.0,7.845]
[1747462086003,4.01058795,2493.4,2493.0,7.845]
[1747462086209,4.01058795,2493.4,2493.0,8.69198538]
[1747462086418,9.13385932,2493.6,2493.0,0.84698538]
[1747462086618,4.01103513,2493.2,2492.9,0.7666]
[1747462086806,4.01112652,2493.1,2493.0,7.845]
[1747462087566,4.01098275,2493.2,2493.0,7.845]
[1747462088024,11.85398275,2493.2,2493.0,8.22804543]
[1747462088213,7.843,2493.2,2493.0,9.12750997]
[1747462088742,4.01083171,2493.3,2493.0,9.12750997]
[1747462088743,11.85376943,2493.3,2493.0,9.12750997]
[1747462089112,4.01076943,2493.3,2493.0,9.12750997]
[1747462089313,4.01076943,2493.3,2493.0,8.74446454]
[1747462090545,4.01092223,2493.2,2493.0,8.74446454]
[1747462090748,4.01090967,2493.2,2493.1,0.8976651]
[1747462090913,4.01123144,2493.0,2492.9,0.7666]
[1747462091114,4.01123144,2493.0,2492.9,8.6106]
[1747462091515,7.842,2493.4,2492.9,8.6106]
[1747462091516,4.01110779,2493.1,2492.9,8.6106]
[1747462092455,11.85264838,2493.4,2492.9,8.6106]
[1747462092614,4.01064838,2493.4,2492.9,12.62199141]
[1747462092811,4.01064838,2493.4,2493.0,1.26219914]
[1747462093016,4.01064838,2493.4,2493.0,1.64307668]
[1747462094449,4.01074904,2493.3,2493.1,0.38087754]
[1747462094649,4.01090967,2493.2,2493.1,0.38087754]
[1747462094948,4.01090967,2493.2,2493.1,8.22387754]
[1747462095319,4.01079866,2493.3,2493.1,8.22387754]
[1747462095650,4.01079866,2493.3,2493.1,8.74204775]
[1747462096052,4.01090967,2493.2,2493.1,8.74204775]
[1747462097649,4.01079509,2493.3,2493.1,8.74204775]
[1747462100742,4.01087738,2493.3,2493.1,0.89904775]
[1747462100944,4.01087738,2493.3,2493.2,7.842]
[1747462101145,4.01068093,2493.4,2493.2,7.842]
[1747462101346,4.01068093,2493.4,2493.2,8.664]
[1747462101660,4.0107488,2493.3,2493.2,8.664]
[1747462102158,4.01062203,2493.4,2493.2,8.664]
[1747462102528,4.01043374,2493.5,2493.3,0.8664]
[1747462103943,4.01051144,2493.5,2493.3,0.8664]
[1747462105558,4.01027739,2493.6,2493.3,0.8664]
[1747462105863,11.84627739,2493.6,2493.3,0.8664]
[1747462106067,11.84627739,2493.6,2493.4,1.31192755]
[1747462106352,4.01027739,2493.6,2493.4,1.31192755]
[1747462106727,4.01042711,2493.5,2493.4,1.31192755]
[1747462107148,4.01037668,2493.6,2493.4,1.31192755]
[1747462107570,4.01037668,2493.6,2493.4,0.93072964]
[1747462109465,7.835,2493.9,2493.4,0.93072964]
[1747462109466,4.00828906,2494.9,2494.4,0.7732]
[1747462109624,4.00769477,2495.2,2494.5,8.31923359]
[1747462109935,4.00860503,2494.7,2494.6,7.841]
[1747462110139,1.13385932,2494.7,2494.4,17.32]
[1747462110453,4.0088194,2494.5,2494.4,17.32]
[1747462110765,4.0088194,2494.5,2494.4,25.161]
[1747462111267,4.0088194,2494.5,2494.4,17.32]
[1747462111435,4.0088194,2494.5,2494.4,25.16]
[1747462112439,4.00785539,2495.1,2494.4,25.16]
[1747462112642,15.833,2495.0,2494.4,25.16]
[1747462112848,1.13385932,2494.9,2494.4,25.16]
[1747462113141,8.0,2495.1,2494.5,8.6052]
[1747462113363,4.0081483,2495.0,2494.5,8.6052]
[1747462113659,4.00825532,2494.9,2494.5,8.6052]
[1747462113956,4.00824831,2494.9,2494.5,8.6052]
[1747462114169,4.00833819,2494.8,2494.6,0.38062092]
[1747462114331,4.00835155,2494.8,2494.6,0.38062092]
[1747462114525,4.00833734,2494.8,2494.6,0.38062092]
[1747462114729,4.00833734,2494.8,2494.7,7.832]
[1747462114963,4.00849801,2494.7,2494.6,0.38062092]
[1747462115354,13.14235733,2494.7,2494.6,0.38062092]
[1747462115539,4.0086587,2494.6,2494.5,7.832]
[1747462115730,11.8406587,2494.6,2494.5,7.832]
[1747462117263,4.0088194,2494.5,2494.4,17.32]
[1747462117446,4.0088194,2494.5,2494.4,25.151]
[1747462117647,4.0088194,2494.5,2494.4,17.32]
[1747462117848,6.65111439,2494.5,2494.4,25.151]
[1747462119143,6.65111439,2494.5,2494.4,17.32]
[1747462119372,6.65111439,2494.5,2494.4,25.151]
[1747462120054,6.65111439,2494.5,2494.4,17.32]
[1747462121090,4.0088194,2494.5,2494.4,17.32]
[1747462121383,11.8398194,2494.5,2494.4,25.151]
[1747462122375,11.8398194,2494.5,2494.4,17.32]
[1747462123277,11.8197694,2494.5,2494.4,17.32]
[1747462123584,4.00962309,2494.0,2493.9,1.30469722]
[1747462123878,4.00962309,2494.0,2493.9,8.69099233]
[1747462124079,4.00962309,2494.0,2493.9,0.85999233]
[1747462124280,4.00962309,2494.0,2493.9,8.69099233]
[1747462125378,4.00962309,2494.0,2493.9,8.21219511]
[1747462126172,11.83962309,2494.0,2493.9,8.21219511]
[1747462126784,11.83962309,2494.0,2493.9,0.38119511]
[1747462126963,14.30812037,2494.0,2493.9,0.38119511]
[1747462128075,4.00978387,2493.9,2493.8,7.831]
[1747462128877,4.01010546,2493.7,2493.6,17.314]
[1747462129085,5.14396478,2493.7,2493.6,17.314]
[1747462129258,4.01026628,2493.6,2493.5,0.47879722]
[1747462129893,4.78046628,2493.6,2493.5,0.47879722]
[1747462131467,4.01058795,2493.4,2493.3,7.831]
[1747462131668,11.84058795,2493.4,2493.3,7.831]
[1747462132895,11.84058795,2493.4,2493.3,8.21290985]
[1747462133190,11.84058795,2493.4,2493.3,0.38190985]
[1747462133380,11.84058795,2493.4,2493.3,8.21390985]
[1747462135193,4.01058795,2493.4,2493.3,0.38190985]
[1747462135491,11.84058795,2493.4,2493.3,8.21390985]
[1747462136195,4.01037915,2493.6,2493.3,1.20330084]
[1747462136365,4.01037915,2493.6,2493.3,8.21390985]
[1747462136366,4.01026628,2493.6,2493.3,8.21390985]
[1747462136567,4.01043461,2493.5,2493.3,8.21390985]
[1747462137558,4.01058795,2493.4,2493.3,8.21390985]
[1747462138108,4.01051055,2493.5,2493.3,7.832]
[1747462139367,0.8259,2493.9,2493.4,0.8195]
[1747462139568,8.0,2494.1,2493.4,1.68465]
[1747462139792,4.01009573,2493.8,2493.4,1.68465]
[1747462140001,4.01012332,2493.7,2493.4,1.68465]
[1747462140809,4.00989023,2493.9,2493.4,5.69523626]
[1747462140974,4.00989023,2493.9,2493.5,0.93197964]
[1747462141300,4.00989023,2493.9,2493.5,1.31356209]
[1747462141871,4.0097067,2494.0,2493.6,0.8195]
[1747462142068,4.0097067,2494.0,2493.6,4.82975635]
[1747462142301,4.0097067,2494.0,2493.6,1.68465]
[1747462142602,4.0097067,2494.0,2493.7,0.38158245]
[1747462142767,4.0097067,2494.0,2493.8,7.833]
[1747462144195,4.00978387,2493.9,2493.8,7.833]
[1747462144397,4.01010546,2493.7,2493.5,0.47879722]
[1747462144596,4.01026628,2493.6,2493.5,0.47879722]
[1747462144902,7.829,2494.1,2493.5,8.30779722]
[1747462145129,4.00962309,2494.0,2493.5,12.31822084]
[1747462145407,4.00962309,2494.0,2493.6,0.8224]
[1747462145883,4.00962309,2494.0,2493.7,0.38204623]
[1747462147302,4.00962309,2494.0,2493.8,0.38204623]
[1747462149015,4.00962309,2494.0,2493.9,0.38204623]
[1747462150679,1.13385932,2494.7,2493.9,0.38204623]
[1747462150885,4.0094212,2494.2,2494.0,8.6504]
[1747462151280,4.0094212,2494.2,2494.1,0.38204623]
[1747462152180,4.0094212,2494.2,2494.1,8.21004623]
[1747462152716,4.7904212,2494.2,2494.1,0.38204623]
[1747462152915,5.7837652,2494.2,2494.1,8.21004623]
[1747462153085,5.7837652,2494.2,2494.1,0.38204623]
[1747462153414,5.7837652,2494.2,2494.1,8.21004623]
[1747462153591,4.7904212,2494.2,2494.1,8.21004623]
[1747462157026,4.0094212,2494.2,2494.1,8.21004623]
[1747462157234,11.8354212,2494.2,2494.1,8.21004623]
[1747462158603,4.0094212,2494.2,2494.1,8.21004623]
[1747462161323,4.0094212,2494.2,2494.1,0.38204623]
[1747462161518,4.0094212,2494.2,2494.1,8.21004623]
[1747462164008,11.8334212,2494.2,2494.1,8.21004623]
[1747462164726,11.8334212,2494.2,2494.1,0.38204623]
[1747462164911,11.8334212,2494.2,2494.1,8.21004623]
[1747462165721,13.5310652,2494.2,2494.1,0.38204623]
[1747462165926,14.3423652,2494.2,2494.1,0.38204623]
[1747462166445,15.47622452,2494.2,2494.1,0.38204623]
[1747462166737,13.5310652,2494.2,2494.1,0.38204623]
[1747462172238,11.8314212,2494.2,2494.1,0.38204623]
[1747462173359,4.0094212,2494.2,2494.1,0.38204623]
[1747462173559,11.8314212,2494.2,2494.1,0.38204623]
[1747462174633,4.0094212,2494.2,2494.1,0.38204623]
[1747462174838,11.8304212,2494.2,2494.1,0.38204623]
[1747462175657,11.8304212,2494.2,2494.1,1.20024623]
[1747462175658,4.0094212,2494.2,2494.1,1.20024623]
[1747462175857,11.8304212,2494.2,2494.1,1.20024623]
[1747462176461,4.00915952,2494.3,2494.1,1.20024623]
[1747462176462,4.0091862,2494.3,2494.1,2.15105058]
[1747462176825,11.8301862,2494.3,2494.2,0.38204623]
[1747462178927,20.96404552,2494.3,2494.2,0.38204623]